[Event "Titled Tuesday Blitz April 4 Early 2023"]
[White "Gontcharov, Vladislav"]
[Black "Tagliata"]
[WhiteFideId "4123492"]
[WhiteElo "2420"]
[BlackElo "2289"]
[Result "1-0"]
[Round "01"]
[TimeControl "180+2"]
[Date "2023.04.04"]
[WhiteClock "0:00:09"]
[BlackClock "0:00:13"]

1. d4 {[%clk 0:02:59]}  d5 {[%clk 0:02:58]} 2. c4 {[%clk 0:02:56]}  e6 {[%clk 0:02:59]} 3. Nc3 {[%clk 0:02:56]}  Nf6 {[%clk 0:02:58]} 4. Bg5 {[%clk 0:02:55]}  c6 {[%clk 0:02:05]} 5. e3 {[%clk 0:02:43]}  h6 {[%clk 0:02:02]} 6. Bxf6 {[%clk 0:02:37]}  Qxf6 {[%clk 0:02:03]} 7. Nf3 {[%clk 0:02:36]}  Nd7 {[%clk 0:02:01]} 8. Bd3 {[%clk 0:02:30]}  g6 {[%clk 0:02:02]} 9. O-O {[%clk 0:02:26]}  Bg7 {[%clk 0:02:02]} 10. e4 {[%clk 0:02:26]}  O-O {[%clk 0:01:38]} 11. cxd5 {[%clk 0:02:09]}  exd5 {[%clk 0:01:06]} 12. e5 {[%clk 0:01:46]}  Qe7 {[%clk 0:01:04]} 13. a3 {[%clk 0:01:46]}  Re8 {[%clk 0:01:03]} 14. b4 {[%clk 0:01:45]}  Nf8 {[%clk 0:01:03]} 15. h3 {[%clk 0:01:43]}  Ne6 {[%clk 0:01:01]} 16. b5 {[%clk 0:01:34]}  Nf4 {[%clk 0:00:56]} 17. Rc1 {[%clk 0:01:11]}  Nxd3 {[%clk 0:00:52]} 18. Qxd3 {[%clk 0:01:11]}  Bf5 {[%clk 0:00:51]} 19. Qd2 {[%clk 0:01:00]}  Qxa3 {[%clk 0:00:43]} 20. bxc6 {[%clk 0:01:00]}  bxc6 {[%clk 0:00:43]} 21. Ra1 {[%clk 0:01:00]}  Qe7 {[%clk 0:00:39]} 22. Na4 {[%clk 0:01:00]}  Reb8 {[%clk 0:00:36]} 23. Rfc1 {[%clk 0:00:56]}  Qe8 {[%clk 0:00:31]} 24. Nc5 {[%clk 0:00:53]}  Be4 {[%clk 0:00:29]} 25. Ne1 {[%clk 0:00:49]}  Bf8 {[%clk 0:00:27]} 26. Ned3 {[%clk 0:00:48]}  Bxd3 {[%clk 0:00:26]} 27. Nxd3 {[%clk 0:00:48]}  Rb5 {[%clk 0:00:24]} 28. Qc3 {[%clk 0:00:41]}  Rb6 {[%clk 0:00:22]} 29. Ra5 {[%clk 0:00:37]}  Qd7 {[%clk 0:00:20]} 30. Rca1 {[%clk 0:00:35]}  Qb7 {[%clk 0:00:20]} 31. Kh2 {[%clk 0:00:34]}  Rb5 {[%clk 0:00:20]} 32. R5a4 {[%clk 0:00:30]}  Rb3 {[%clk 0:00:19]} 33. Qc2 {[%clk 0:00:26]}  Be7 {[%clk 0:00:19]} 34. e6 {[%clk 0:00:19]}  fxe6 {[%clk 0:00:13]} 35. Ne5 {[%clk 0:00:19]}  Bf6 {[%clk 0:00:11]} 36. Qxg6+ {[%clk 0:00:18]}  Qg7 {[%clk 0:00:12]} 37. Qxg7+ {[%clk 0:00:18]}  Kxg7 {[%clk 0:00:13]} 38. Nxc6 {[%clk 0:00:19]}  a6 {[%clk 0:00:11]} 39. Rxa6 {[%clk 0:00:18]}  Rxa6 {[%clk 0:00:12]} 40. Rxa6 {[%clk 0:00:18]}  Rd3 {[%clk 0:00:13]} 41. g3 {[%clk 0:00:15]}  Kf7 {[%clk 0:00:12]} 42. Ra7+ {[%clk 0:00:15]}  Kg6 {[%clk 0:00:11]} 43. Ra4 {[%clk 0:00:14]}  Kf5 {[%clk 0:00:11]} 44. Kg2 {[%clk 0:00:14]}  Rd2 {[%clk 0:00:10]} 45. Kf3 {[%clk 0:00:14]}  Rd3+ {[%clk 0:00:09]} 46. Ke2 {[%clk 0:00:14]}  Rb3 {[%clk 0:00:10]} 47. Ra6 {[%clk 0:00:13]}  Rb2+ {[%clk 0:00:10]} 48. Kf3 {[%clk 0:00:13]}  Rb3+ {[%clk 0:00:10]} 49. Kg2 {[%clk 0:00:13]}  Rd3 {[%clk 0:00:11]} 50. Ra4 {[%clk 0:00:10]}  Rb3 {[%clk 0:00:11]} 51. h4 {[%clk 0:00:08]}  Ke4 {[%clk 0:00:11]} 52. Ra6 {[%clk 0:00:06]}  Rd3 {[%clk 0:00:10]} 53. Nb4 {[%clk 0:00:05]}  Rxd4 {[%clk 0:00:10]} 54. Nc2 {[%clk 0:00:05]}  Rc4 {[%clk 0:00:10]} 55. Ne3 {[%clk 0:00:04]}  Rc3 {[%clk 0:00:09]} 56. Rxe6+ {[%clk 0:00:05]}  Kd4 {[%clk 0:00:10]} 57. Rxf6 {[%clk 0:00:05]}  Kc5 {[%clk 0:00:09]} 58. Rf5 {[%clk 0:00:05]}  Rd3 {[%clk 0:00:08]} 59. Rxd5+ {[%clk 0:00:05]}  Rxd5 {[%clk 0:00:08]} 60. Nxd5 {[%clk 0:00:06]}  Kxd5 {[%clk 0:00:09]} 61. Kf3 {[%clk 0:00:06]}  Ke5 {[%clk 0:00:10]} 62. Kg4 {[%clk 0:00:07]}  Ke4 {[%clk 0:00:10]} 63. Kh5 {[%clk 0:00:07]}  Kf3 {[%clk 0:00:11]} 64. Kxh6 {[%clk 0:00:07]}  Kxf2 {[%clk 0:00:11]} 65. g4 {[%clk 0:00:08]}  Kg3 {[%clk 0:00:12]} 66. g5 {[%clk 0:00:08]}  Kg4 {[%clk 0:00:13]} 67. g6 {[%clk 0:00:09]} 1-0


[Site "https://www.chess.com"]

[Event "Titled Tuesday Blitz April 4 Early 2023"]
[White "Fiorito, Francisco"]
[Black "Zaichenko, Daria"]
[WhiteFideId "180165"]
[BlackFideId "4197453"]
[WhiteElo "2341"]
[BlackElo "2039"]
[Result "1-0"]
[Round "01"]
[TimeControl "180+2"]
[Date "2023.04.04"]
[WhiteClock "0:00:54"]
[BlackClock "0:00:20"]

1. d4 {[%clk 0:02:59]}  d5 {[%clk 0:02:59]} 2. Bf4 {[%clk 0:02:58]}  c6 {[%clk 0:02:56]} 3. e3 {[%clk 0:02:59]}  Bf5 {[%clk 0:02:55]} 4. Nf3 {[%clk 0:02:56]}  Nf6 {[%clk 0:02:51]} 5. c3 {[%clk 0:02:54]}  e6 {[%clk 0:02:48]} 6. Nh4 {[%clk 0:02:54]}  Bxb1 {[%clk 0:02:46]} 7. Rxb1 {[%clk 0:02:51]}  Bd6 {[%clk 0:02:34]} 8. Nf3 {[%clk 0:02:47]}  Bxf4 {[%clk 0:02:33]} 9. exf4 {[%clk 0:02:48]}  Ne4 {[%clk 0:02:32]} 10. Bd3 {[%clk 0:02:47]}  f5 {[%clk 0:02:29]} 11. Qe2 {[%clk 0:02:46]}  Nd7 {[%clk 0:02:28]} 12. O-O {[%clk 0:02:40]}  O-O {[%clk 0:02:28]} 13. Ng5 {[%clk 0:02:36]}  Qf6 {[%clk 0:02:19]} 14. f3 {[%clk 0:02:31]}  Nxg5 {[%clk 0:02:08]} 15. fxg5 {[%clk 0:02:32]}  Qxg5 {[%clk 0:01:43]} 16. Qxe6+ {[%clk 0:02:31]}  Rf7 {[%clk 0:01:44]} 17. f4 {[%clk 0:02:27]}  Qf6 {[%clk 0:01:42]} 18. Qe2 {[%clk 0:02:14]}  Re7 {[%clk 0:01:41]} 19. Qc2 {[%clk 0:02:13]}  g6 {[%clk 0:01:38]} 20. Rbe1 {[%clk 0:02:13]}  Rae8 {[%clk 0:01:37]} 21. Qd2 {[%clk 0:02:13]}  b6 {[%clk 0:01:28]} 22. g3 {[%clk 0:02:09]}  Qf7 {[%clk 0:01:24]} 23. Kg2 {[%clk 0:02:08]}  Nf6 {[%clk 0:01:24]} 24. Re5 {[%clk 0:02:09]}  Ne4 {[%clk 0:01:24]} 25. Qe2 {[%clk 0:02:06]}  c5 {[%clk 0:01:22]} 26. Bxe4 {[%clk 0:01:51]}  dxe4 {[%clk 0:01:08]} 27. b3 {[%clk 0:01:41]}  cxd4 {[%clk 0:01:07]} 28. cxd4 {[%clk 0:01:42]}  Rc8 {[%clk 0:00:55]} 29. Rd1 {[%clk 0:01:42]}  Rec7 {[%clk 0:00:52]} 30. d5 {[%clk 0:01:39]}  Qd7 {[%clk 0:00:47]} 31. Kh3 {[%clk 0:01:25]}  Rc5 {[%clk 0:00:38]} 32. b4 {[%clk 0:01:02]}  Rc4 {[%clk 0:00:35]} 33. d6 {[%clk 0:00:59]}  Rc2 {[%clk 0:00:26]} 34. Rd2 {[%clk 0:00:56]}  Rxd2 {[%clk 0:00:21]} 35. Qxd2 {[%clk 0:00:57]}  Rc6 {[%clk 0:00:21]} 36. Qd5+ {[%clk 0:00:55]}  Kf8 {[%clk 0:00:20]} 37. Re7 {[%clk 0:00:54]} 1-0


[Site "https://www.chess.com"]

[Event "Titled Tuesday Blitz April 4 Early 2023"]
[White "Gabdrakhmanov, Azat"]
[Black "Antonio, Jorge Carlos"]
[WhiteFideId "34189197"]
[BlackFideId "113190"]
[WhiteElo "2306"]
[BlackElo "2247"]
[Result "0-1"]
[Round "01"]
[TimeControl "180+2"]
[Date "2023.04.04"]
[WhiteClock "0:00:01"]
[BlackClock "0:00:04"]

1. e4 {[%clk 0:03:00]}  c5 {[%clk 0:02:58]} 2. Nf3 {[%clk 0:02:58]}  e6 {[%clk 0:02:58]} 3. d4 {[%clk 0:02:56]}  cxd4 {[%clk 0:02:58]} 4. Nxd4 {[%clk 0:02:57]}  a6 {[%clk 0:02:57]} 5. c4 {[%clk 0:02:53]}  Nc6 {[%clk 0:02:57]} 6. Nc3 {[%clk 0:02:52]}  Qc7 {[%clk 0:02:52]} 7. Be2 {[%clk 0:02:50]}  Nf6 {[%clk 0:02:52]} 8. O-O {[%clk 0:02:48]}  Bb4 {[%clk 0:02:49]} 9. Nxc6 {[%clk 0:02:38]}  bxc6 {[%clk 0:02:46]} 10. Bd3 {[%clk 0:02:31]}  O-O {[%clk 0:02:42]} 11. Ne2 {[%clk 0:02:31]}  d5 {[%clk 0:02:41]} 12. Qc2 {[%clk 0:02:14]}  dxe4 {[%clk 0:02:35]} 13. Bxe4 {[%clk 0:02:14]}  Bd6 {[%clk 0:02:32]} 14. h3 {[%clk 0:02:09]}  Nxe4 {[%clk 0:02:27]} 15. Qxe4 {[%clk 0:02:10]}  Bb7 {[%clk 0:02:22]} 16. Bf4 {[%clk 0:02:07]}  e5 {[%clk 0:02:18]} 17. Bd2 {[%clk 0:01:16]}  c5 {[%clk 0:02:17]} 18. Qh4 {[%clk 0:01:15]}  f5 {[%clk 0:02:10]} 19. Nc3 {[%clk 0:01:15]}  Rae8 {[%clk 0:02:02]} 20. Nd5 {[%clk 0:01:13]}  Bxd5 {[%clk 0:01:59]} 21. cxd5 {[%clk 0:01:13]}  e4 {[%clk 0:01:57]} 22. Bc3 {[%clk 0:01:08]}  Qf7 {[%clk 0:01:48]} 23. Rae1 {[%clk 0:00:45]}  Qg6 {[%clk 0:01:39]} 24. f4 {[%clk 0:00:38]}  Qf7 {[%clk 0:01:36]} 25. Qf2 {[%clk 0:00:31]}  Qxd5 {[%clk 0:01:28]} 26. Rd1 {[%clk 0:00:30]}  Qc6 {[%clk 0:01:26]} 27. Qg3 {[%clk 0:00:30]}  Rf7 {[%clk 0:01:23]} 28. h4 {[%clk 0:00:24]}  c4 {[%clk 0:01:19]} 29. h5 {[%clk 0:00:24]}  Bc5+ {[%clk 0:01:11]} 30. Kh2 {[%clk 0:00:19]}  e3 {[%clk 0:01:10]} 31. Rfe1 {[%clk 0:00:18]}  Bb6 {[%clk 0:01:05]} 32. Be5 {[%clk 0:00:16]}  Re6 {[%clk 0:01:02]} 33. Qg5 {[%clk 0:00:12]}  Qe8 {[%clk 0:00:54]} 34. Rxe3 {[%clk 0:00:11]}  Bxe3 {[%clk 0:00:47]} 35. Rd8 {[%clk 0:00:11]}  Rxe5 {[%clk 0:00:43]} 36. Rxe8+ {[%clk 0:00:04]}  Rxe8 {[%clk 0:00:41]} 37. h6 {[%clk 0:00:04]}  g6 {[%clk 0:00:27]} 38. Qg3 {[%clk 0:00:04]}  Re4 {[%clk 0:00:23]} 39. Qf3 {[%clk 0:00:02]}  Bxf4+ {[%clk 0:00:22]} 40. g3 {[%clk 0:00:02]}  Bxh6 {[%clk 0:00:20]} 41. Qc3 {[%clk 0:00:03]}  Bg7 {[%clk 0:00:20]} 42. Qb4 {[%clk 0:00:02]}  Rfe7 {[%clk 0:00:19]} 43. Qb8+ {[%clk 0:00:02]}  Re8 {[%clk 0:00:19]} 44. Qd6 {[%clk 0:00:01]}  Re2+ {[%clk 0:00:19]} 45. Kh3 {[%clk 0:00:01]}  R2e6 {[%clk 0:00:17]} 46. Qd5 {[%clk 0:00:02]}  Kh8 {[%clk 0:00:13]} 47. Qxc4 {[%clk 0:00:03]}  Re4 {[%clk 0:00:13]} 48. Qd5 {[%clk 0:00:03]}  f4 {[%clk 0:00:13]} 49. gxf4 {[%clk 0:00:04]}  Rxf4 {[%clk 0:00:13]} 50. Qc6 {[%clk 0:00:04]}  Rff8 {[%clk 0:00:11]} 51. a4 {[%clk 0:00:03]}  Re5 {[%clk 0:00:11]} 52. Qg2 {[%clk 0:00:02]}  Ref5 {[%clk 0:00:11]} 53. Qc6 {[%clk 0:00:01]}  Rf3+ {[%clk 0:00:11]} 54. Kg4 {[%clk 0:00:01]}  R8f4+ {[%clk 0:00:10]} 55. Kg5 {[%clk 0:00:01]}  Rf5+ {[%clk 0:00:10]} 56. Kg4 {[%clk 0:00:01]}  R3f4+ {[%clk 0:00:10]} 57. Kg3 {[%clk 0:00:02]}  Rf3+ {[%clk 0:00:10]} 58. Kg2 {[%clk 0:00:02]}  Rf2+ {[%clk 0:00:10]} 59. Kg3 {[%clk 0:00:03]}  R2f3+ {[%clk 0:00:10]} 60. Kg2 {[%clk 0:00:01]}  Rf2+ {[%clk 0:00:09]} 61. Kg3 {[%clk 0:00:02]}  Be5+ {[%clk 0:00:08]} 62. Kg4 {[%clk 0:00:01]}  R2f4+ {[%clk 0:00:06]} 63. Kh3 {[%clk 0:00:01]}  Rf3+ {[%clk 0:00:06]} 64. Kg4 {[%clk 0:00:02]}  R3f4+ {[%clk 0:00:06]} 65. Kh3 {[%clk 0:00:02]}  Rg5 {[%clk 0:00:06]} 66. Qe8+ {[%clk 0:00:01]}  Kg7 {[%clk 0:00:05]} 67. Qe6 {[%clk 0:00:01]}  Kh6 {[%clk 0:00:04]} 0-1


[Site "https://www.chess.com"]

[Event "Titled Tuesday Blitz April 4 Early 2023"]
[White "Nugumanov, Bakhtiyar"]
[Black "Bilan, Danila"]
[WhiteFideId "13701797"]
[BlackFideId "24161918"]
[WhiteElo "2209"]
[BlackElo "2182"]
[Result "0-1"]
[Round "01"]
[TimeControl "180+2"]
[Date "2023.04.04"]
[WhiteClock "0:00:10"]
[BlackClock "0:00:03"]

1. Nf3 {[%clk 0:02:57]}  d5 {[%clk 0:02:59]} 2. g3 {[%clk 0:02:57]}  Nf6 {[%clk 0:02:59]} 3. Bg2 {[%clk 0:02:58]}  Bf5 {[%clk 0:02:59]} 4. O-O {[%clk 0:02:58]}  e6 {[%clk 0:02:59]} 5. c4 {[%clk 0:02:59]}  c6 {[%clk 0:02:59]} 6. cxd5 {[%clk 0:02:58]}  exd5 {[%clk 0:02:57]} 7. d3 {[%clk 0:02:58]}  Be7 {[%clk 0:02:55]} 8. Qb3 {[%clk 0:02:56]}  Qb6 {[%clk 0:02:53]} 9. Qc2 {[%clk 0:02:55]}  Nbd7 {[%clk 0:02:51]} 10. Nc3 {[%clk 0:02:56]}  O-O {[%clk 0:02:38]} 11. e4 {[%clk 0:02:56]}  dxe4 {[%clk 0:02:24]} 12. dxe4 {[%clk 0:02:56]}  Bg6 {[%clk 0:02:20]} 13. Be3 {[%clk 0:02:57]}  Qa5 {[%clk 0:02:12]} 14. a3 {[%clk 0:02:55]}  Rfe8 {[%clk 0:01:54]} 15. b4 {[%clk 0:02:48]}  Qh5 {[%clk 0:01:50]} 16. h3 {[%clk 0:02:32]}  Ne5 {[%clk 0:01:31]} 17. Nxe5 {[%clk 0:02:14]}  Qxe5 {[%clk 0:01:31]} 18. f4 {[%clk 0:02:12]}  Qc7 {[%clk 0:01:30]} 19. f5 {[%clk 0:02:03]}  Bh5 {[%clk 0:01:18]} 20. g4 {[%clk 0:01:38]}  Bxg4 {[%clk 0:01:13]} 21. hxg4 {[%clk 0:01:39]}  Nxg4 {[%clk 0:01:14]} 22. Bf4 {[%clk 0:01:39]}  Bd6 {[%clk 0:01:06]} 23. Qd2 {[%clk 0:01:19]}  Rad8 {[%clk 0:00:52]} 24. Bxd6 {[%clk 0:01:16]}  Rxd6 {[%clk 0:00:50]} 25. Qf4 {[%clk 0:01:15]}  Qb6+ {[%clk 0:00:48]} 26. Kh1 {[%clk 0:01:14]}  Rh6+ {[%clk 0:00:45]} 27. Bh3 {[%clk 0:01:04]}  Rxh3+ {[%clk 0:00:37]} 28. Kg2 {[%clk 0:01:03]}  Rxc3 {[%clk 0:00:23]} 29. Qxg4 {[%clk 0:01:02]}  Rc2+ {[%clk 0:00:20]} 30. Kh1 {[%clk 0:00:55]}  c5 {[%clk 0:00:14]} 31. f6 {[%clk 0:00:45]}  g6 {[%clk 0:00:14]} 32. Qh4 {[%clk 0:00:41]}  h5 {[%clk 0:00:13]} 33. Rg1 {[%clk 0:00:27]}  Qe6 {[%clk 0:00:12]} 34. Rae1 {[%clk 0:00:26]}  Rc3 {[%clk 0:00:06]} 35. Rg3 {[%clk 0:00:20]}  Rxg3 {[%clk 0:00:05]} 36. Qxg3 {[%clk 0:00:21]}  cxb4 {[%clk 0:00:06]} 37. axb4 {[%clk 0:00:20]}  Qxf6 {[%clk 0:00:07]} 38. e5 {[%clk 0:00:20]}  Qf5 {[%clk 0:00:07]} 39. Kh2 {[%clk 0:00:17]}  Rc8 {[%clk 0:00:06]} 40. Re2 {[%clk 0:00:17]}  Rc2 {[%clk 0:00:05]} 41. Qg2 {[%clk 0:00:13]}  Qf4+ {[%clk 0:00:03]} 42. Kh3 {[%clk 0:00:10]}  Rc3+ {[%clk 0:00:03]} 0-1


[Site "https://www.chess.com"]

[Event "Titled Tuesday Blitz April 4 Early 2023"]
[White "Martic, Ivan"]
[Black "Torres Hernandez, Leslie Carolin"]
[WhiteFideId "929301"]
[BlackFideId "8400504"]
[WhiteElo "2360"]
[BlackElo "1920"]
[Result "1-0"]
[Round "01"]
[TimeControl "180+2"]
[Date "2023.04.04"]
[WhiteClock "0:01:58"]
[BlackClock "0:00:34"]

1. d4 {[%clk 0:03:00]}  Nf6 {[%clk 0:02:59]} 2. Bg5 {[%clk 0:02:58]}  d5 {[%clk 0:02:59]} 3. e3 {[%clk 0:02:57]}  e6 {[%clk 0:02:58]} 4. c4 {[%clk 0:02:54]}  Be7 {[%clk 0:02:57]} 5. Nc3 {[%clk 0:02:55]}  O-O {[%clk 0:02:56]} 6. Nf3 {[%clk 0:02:55]}  b6 {[%clk 0:02:55]} 7. cxd5 {[%clk 0:02:54]}  exd5 {[%clk 0:02:55]} 8. Bb5 {[%clk 0:02:51]}  Bb7 {[%clk 0:02:55]} 9. O-O {[%clk 0:02:49]}  a6 {[%clk 0:02:53]} 10. Ba4 {[%clk 0:02:49]}  Nbd7 {[%clk 0:02:51]} 11. Rc1 {[%clk 0:02:44]}  b5 {[%clk 0:02:48]} 12. Bb3 {[%clk 0:02:42]}  c5 {[%clk 0:02:48]} 13. dxc5 {[%clk 0:02:39]}  Nxc5 {[%clk 0:02:46]} 14. Bc2 {[%clk 0:02:38]}  Nce4 {[%clk 0:02:32]} 15. Nxe4 {[%clk 0:02:26]}  dxe4 {[%clk 0:02:25]} 16. Nd4 {[%clk 0:02:26]}  Qd5 {[%clk 0:02:13]} 17. Bh4 {[%clk 0:02:22]}  Rfd8 {[%clk 0:02:07]} 18. Bb3 {[%clk 0:02:20]}  Qe5 {[%clk 0:01:58]} 19. Bg3 {[%clk 0:02:16]}  Qg5 {[%clk 0:01:57]} 20. Rc7 {[%clk 0:02:13]}  Rd7 {[%clk 0:01:35]} 21. Ne6 {[%clk 0:02:01]}  Qf5 {[%clk 0:00:34]} 22. Rxd7 {[%clk 0:01:58]}  fxe6 {[%clk 0:00:34]} 1-0


[Site "https://www.chess.com"]

[Event "Titled Tuesday Blitz April 4 Early 2023"]
[White "Alberto, Manuel"]
[Black "Ehlvest, Jaan"]
[WhiteFideId "10100148"]
[BlackFideId "4500016"]
[WhiteElo "2166"]
[BlackElo "2442"]
[Result "1-0"]
[Round "01"]
[TimeControl "180+2"]
[Date "2023.04.04"]
[WhiteClock "0:02:19"]
[BlackClock "0:02:35"]

1. e4 {[%clk 0:02:46]}  c5 {[%clk 0:02:58]} 2. Nf3 {[%clk 0:02:45]}  Nc6 {[%clk 0:02:58]} 3. Bb5 {[%clk 0:02:44]}  g6 {[%clk 0:02:57]} 4. Bxc6 {[%clk 0:02:43]}  bxc6 {[%clk 0:02:56]} 5. O-O {[%clk 0:02:44]}  Bg7 {[%clk 0:02:56]} 6. Re1 {[%clk 0:02:44]}  Qc7 {[%clk 0:02:56]} 7. e5 {[%clk 0:02:44]}  f6 {[%clk 0:02:54]} 8. d4 {[%clk 0:02:30]}  cxd4 {[%clk 0:02:51]} 9. exf6 {[%clk 0:02:30]}  Nxf6 {[%clk 0:02:50]} 10. Nxd4 {[%clk 0:02:30]}  Bb7 {[%clk 0:02:40]} 11. Nc3 {[%clk 0:02:28]}  c5 {[%clk 0:02:38]} 12. Nf3 {[%clk 0:02:22]}  d6 {[%clk 0:02:35]} 13. Nb5 {[%clk 0:02:19]} 1-0


[Site "https://www.chess.com"]

[Event "Titled Tuesday Blitz April 4 Early 2023"]
[White "Guz, Ari"]
[Black "Srdanovic, Jovana"]
[WhiteFideId "2825759"]
[BlackFideId "954810"]
[WhiteElo "2205"]
[BlackElo "2145"]
[Result "1-0"]
[Round "01"]
[TimeControl "180+2"]
[Date "2023.04.04"]
[WhiteClock "0:00:47"]
[BlackClock "0:00:43"]

1. e4 {[%clk 0:02:48]}  c5 {[%clk 0:02:59]} 2. Nf3 {[%clk 0:02:46]}  e6 {[%clk 0:02:59]} 3. c3 {[%clk 0:02:46]}  Nf6 {[%clk 0:02:57]} 4. e5 {[%clk 0:02:46]}  Nd5 {[%clk 0:02:57]} 5. d4 {[%clk 0:02:46]}  cxd4 {[%clk 0:02:56]} 6. cxd4 {[%clk 0:02:44]}  d6 {[%clk 0:02:53]} 7. Bc4 {[%clk 0:02:44]}  Nb6 {[%clk 0:02:53]} 8. Bb5+ {[%clk 0:02:43]}  Bd7 {[%clk 0:02:50]} 9. Bd3 {[%clk 0:02:41]}  Nc6 {[%clk 0:02:48]} 10. O-O {[%clk 0:02:40]}  Be7 {[%clk 0:02:45]} 11. Nc3 {[%clk 0:02:39]}  a6 {[%clk 0:02:35]} 12. Qe2 {[%clk 0:02:37]}  d5 {[%clk 0:02:34]} 13. a3 {[%clk 0:02:28]}  Rc8 {[%clk 0:02:32]} 14. Bf4 {[%clk 0:02:21]}  Na5 {[%clk 0:02:32]} 15. g3 {[%clk 0:02:15]}  O-O {[%clk 0:02:31]} 16. h4 {[%clk 0:02:15]}  Na4 {[%clk 0:02:16]} 17. Nxa4 {[%clk 0:02:03]}  Bxa4 {[%clk 0:02:17]} 18. Ng5 {[%clk 0:02:04]}  Bxg5 {[%clk 0:02:15]} 19. hxg5 {[%clk 0:02:02]}  Bb5 {[%clk 0:02:13]} 20. Bxb5 {[%clk 0:02:00]}  axb5 {[%clk 0:02:14]} 21. Qxb5 {[%clk 0:01:57]}  Rc4 {[%clk 0:02:08]} 22. Be3 {[%clk 0:01:53]}  Qc7 {[%clk 0:02:05]} 23. Rac1 {[%clk 0:01:46]}  Rc8 {[%clk 0:02:04]} 24. Rxc4 {[%clk 0:01:44]}  Nxc4 {[%clk 0:02:05]} 25. Rc1 {[%clk 0:01:43]}  Qc6 {[%clk 0:01:51]} 26. Qb4 {[%clk 0:01:31]}  Qd7 {[%clk 0:01:45]} 27. Bf4 {[%clk 0:01:16]}  Ra8 {[%clk 0:01:31]} 28. b3 {[%clk 0:01:13]}  Na5 {[%clk 0:01:23]} 29. Qb6 {[%clk 0:01:02]}  Nc6 {[%clk 0:01:22]} 30. b4 {[%clk 0:01:02]}  Rxa3 {[%clk 0:01:13]} 31. b5 {[%clk 0:01:01]}  Ne7 {[%clk 0:00:47]} 32. Rc7 {[%clk 0:00:59]}  Qe8 {[%clk 0:00:43]} 33. Qxb7 {[%clk 0:00:47]} 1-0


[Site "https://www.chess.com"]

[Event "Titled Tuesday Blitz April 4 Early 2023"]
[White "Shivakumar, Shawnak"]
[Black "Dubreuil, Julien"]
[WhiteFideId "30940192"]
[BlackFideId "621285"]
[WhiteElo "2089"]
[BlackElo "2243"]
[Result "1-0"]
[Round "01"]
[TimeControl "180+2"]
[Date "2023.04.04"]
[WhiteClock "0:01:35"]
[BlackClock "0:00:36"]

1. c4 {[%clk 0:03:00]}  c5 {[%clk 0:02:41]} 2. Nf3 {[%clk 0:02:57]}  g6 {[%clk 0:02:41]} 3. Nc3 {[%clk 0:02:56]}  Bg7 {[%clk 0:02:41]} 4. e3 {[%clk 0:02:56]}  Nf6 {[%clk 0:02:38]} 5. d4 {[%clk 0:02:56]}  cxd4 {[%clk 0:02:39]} 6. Nxd4 {[%clk 0:02:57]}  O-O {[%clk 0:02:38]} 7. Be2 {[%clk 0:02:57]}  d5 {[%clk 0:02:38]} 8. O-O {[%clk 0:02:55]}  dxc4 {[%clk 0:02:36]} 9. Bxc4 {[%clk 0:02:56]}  a6 {[%clk 0:02:36]} 10. a4 {[%clk 0:02:54]}  Bd7 {[%clk 0:02:34]} 11. a5 {[%clk 0:02:53]}  Nc6 {[%clk 0:02:34]} 12. Nxc6 {[%clk 0:02:51]}  Bxc6 {[%clk 0:02:34]} 13. Qb3 {[%clk 0:02:51]}  Nd7 {[%clk 0:02:28]} 14. Rd1 {[%clk 0:02:49]}  Qe8 {[%clk 0:02:14]} 15. Bd5 {[%clk 0:02:39]}  Nc5 {[%clk 0:01:59]} 16. Qa3 {[%clk 0:02:31]}  Bxd5 {[%clk 0:01:54]} 17. Nxd5 {[%clk 0:02:30]}  Rc8 {[%clk 0:01:52]} 18. e4 {[%clk 0:02:18]}  e6 {[%clk 0:01:45]} 19. Nb6 {[%clk 0:02:17]}  Rc6 {[%clk 0:01:37]} 20. Be3 {[%clk 0:02:14]}  Nxe4 {[%clk 0:01:30]} 21. Nd7 {[%clk 0:02:14]}  Qc8 {[%clk 0:00:55]} 22. Nxf8 {[%clk 0:02:11]}  Bxf8 {[%clk 0:00:56]} 23. Qd3 {[%clk 0:02:10]}  Nf6 {[%clk 0:00:53]} 24. Qd8 {[%clk 0:02:10]}  Nd5 {[%clk 0:00:52]} 25. Qxc8 {[%clk 0:02:07]}  Rxc8 {[%clk 0:00:53]} 26. Rac1 {[%clk 0:02:04]}  Re8 {[%clk 0:00:51]} 27. Bc5 {[%clk 0:02:01]}  Bg7 {[%clk 0:00:48]} 28. b4 {[%clk 0:01:53]}  h5 {[%clk 0:00:47]} 29. f3 {[%clk 0:01:49]}  h4 {[%clk 0:00:47]} 30. Kf2 {[%clk 0:01:49]}  g5 {[%clk 0:00:47]} 31. Bd4 {[%clk 0:01:48]}  Bf8 {[%clk 0:00:43]} 32. Bc5 {[%clk 0:01:45]}  Bg7 {[%clk 0:00:41]} 33. g3 {[%clk 0:01:37]}  h3 {[%clk 0:00:40]} 34. Rd3 {[%clk 0:01:36]}  Be5 {[%clk 0:00:39]} 35. Re1 {[%clk 0:01:36]}  Bg7 {[%clk 0:00:36]} 36. Rxd5 {[%clk 0:01:35]} 1-0


[Site "https://www.chess.com"]